[Event "45th FIDE Olympiad 2024"]
[Site "Budapest"]
[Date "2024.09.19"]
[Round "8.26"]
[White "Fabri, Henrik"]
[Black "Dacres, Don"]
[Result "0-1"]
[WhiteElo "1936"]
[BlackElo "1863"]
[PlyCount "186"]
[EventDate "2024.09.05"]
[EventType "team-tourn"]
[EventCountry "HUN"]
[WhiteTeam "Isle of Man"]
[BlackTeam "Bermuda"]
[WhiteTeamCountry "IOM"]
[BlackTeamCountry "BER"]
[TimeControl "40/5400+30:1800+30"]

1. d4 d5 2. Nf3 Nf6 3. c4 c6 4. Nc3 Bf5 5. Qb3 Qb6 6. e3 e6 7. Be2 Qxb3 8. axb3 Bc2 9. Bd1 Bxd1 10. Kxd1 Nbd7 11. c5 Be7 12. b4 O-O 13. h3 Ne4 14. Nxe4 dxe4 15. Nd2 f5 16. Nc4 Rfc8 17. Bd2 g6 18. Ke2 a6 19. Bc3 Rf8 20. g3 Rab8 21. Raf1 Rbd8 22. Na5 Rb8 23. Ra1 Bd8 24. Nc4 Bc7 25. Rhg1 Nf6 26. Nd2 Rbe8 27. Rad1 Rf7 28. Rdf1 Rd8 29. Nc4 Rd5 30. Rd1 Rfd7 31. Rd2 Kf7 32. Rgd1 g5 33. Rg1 Rd8 34. Rgd1 Kg6 35. Na5 Bxa5 36. bxa5 h5 37. Rg1 Rf8 38. Rdd1 g4 39. Rh1 Rf7 40. h4 Rfd7 41. Rd2 Ng8 42. Rhd1 Kf7 43. b4 Ne7 44. Bb2 Nc8 45. Ke1 Ne7 46. Ke2 Ng6 47. Bc3 Nf8 48. Bb2 Ng6 49. Bc3 Ke7 50. Ke1 Rd8 51. Ke2 e5 52. dxe5 Rxd2+ 53. Rxd2 Rxd2+ 54. Kxd2 Ke6 55. Kc2 Kd5 56. Kb3 Nf8 57. Bd4 Ng6 58. Kc3 Nf8 59. Kb3 Ne6 60. Bc3 Nc7 61. Bb2 Ne6 62. Bc3 Nf8 63. Bd4 Ng6 64. Kc3 Ne7 65. Kb3 Nc8 66. Bc3 Na7 67. Ba1 Nb5 68. Bb2 Nc7 69. Bd4 Ne6 70. Bc3 Nf8 71. Bd4 Ng6 72. Kc3 Ne7 73. Kb3 f4 74. gxf4 Nf5 75. Kc3 Nxh4 76. Kd2 Nf3+ 77. Ke2 h4 78. Kf1 Ke6 79. Bc3 h3 80. Bb2 Nd2+ 81. Kg1 Kf5 82. Bc3 Nf3+ 83. Kh1 Ke6 84. Bb2 Nh4 85. Bc3 Nf5 86. Bd2 Kd5 87. Bc1 Kc4 88. Bb2 Kb3 89. Bd4 Kc4 90. Ba1 Kd3 91. e6 Ke2 92. e7 Nxe7 93. f5 Nxf5 {0-} 0-1

[Event "45th FIDE Olympiad 2024"]
[Site "Budapest"]
[Date "2024.09.19"]
[Round "8.27"]
[White "Paichadze, Luka"]
[Black "L'ami, Erwin"]
[Result "1-0"]
[ECO "C45"]
[WhiteElo "2516"]
[BlackElo "2628"]
[Annotator "TA"]
[PlyCount "89"]
[EventDate "2024.09.05"]
[EventType "team-tourn"]
[EventCountry "HUN"]
[SourceTitle "playchess.com"]
[Source "ChessBase"]
[SourceQuality "1"]
[WhiteTeam "Georgia"]
[BlackTeam "Netherlands"]
[WhiteTeamCountry "GEO"]
[BlackTeamCountry "NED"]
[TimeControl "40/5400+30:1800+30"]

{[%evp 15,89,-2,3,0,0,0,0,0,0,-11,12,18,2,3,17,26,27,0,0,0,0,0,0,0,0,-6,17,14,26,0,0,0,0,0,0,6,7,0,25,0,70,68,85,70,114,121,148,57,67,55,41,79,216,41,41,45,48,42,54,62,43,55,45,50,506,500,4618,29943,29946,29949,12841,12837,29983,29984,29984,29985]} 1. e4 {[%emt 0:00:03]} e5 {[%emt 0:00:10]} 2. Nf3 {[%emt 0:00:06]} Nc6 {[%emt 0:00:11]} 3. d4 {[%emt 0:00:10]} exd4 {[%emt 0:00:10]} 4. Nxd4 {[%emt 0:00:05]} Nf6 {[%emt 0:00:19]} 5. Nxc6 {[%emt 0:00:18]} bxc6 {[%emt 0:00:09]} 6. Bd3 {[%emt 0:00:07]} d5 {[%emt 0:01:00]} 7. exd5 {[%emt 0:00:09]} cxd5 {[%emt 0:00:06]} 8. O-O {[%emt 0:00:09]} Be7 {[%emt 0:00:46]} 9. h3 {[%emt 0:00:07]} O-O {[%emt 0:01:10]} 10. Nd2 {[%emt 0:00:14]} a5 {[%emt 0:00:31]} 11. a4 {[%emt 0:00:15] The position is equal.} Bb7 {[%emt 0:05:40]} 12. Re1 {[%emt 0:01:40]} Ne4 {[%emt 0:08:19]} 13. Nxe4 {[%emt 0:15:17]} dxe4 {[%emt 0:00:11]} 14. Bc4 {[%emt 0:00:08]} Bd6 {[%emt 0:07:01] Prevents Bf4} 15. Qh5 {[%emt 0:07:12]} Kh8 {[%emt 0:05:48]} 16. Bd2 {[%emt 0:09:39]} (16. Bxf7 $2 {perishes.} Qf6 17. Be3 Rxf7 $19 (17... Qxf7 $2 18. Qxf7 Rxf7 19. Red1 $19)) 16... f5 {[%emt 0:06:44][%cal Od6h2]} 17. Bc3 {[%emt 0:01:11]} Qe7 {[%emt 0:01:38] Prevents Be6.} 18. Rad1 {[%emt 0:01:47]} Be5 {[%emt 0:05:59]} 19. Bxe5 {[%emt 0:05:32]} Qxe5 {[%emt 0:00:09]} 20. b3 {[%emt 0:00:59]} Bc6 {[%emt 0:04:55]} 21. Rd2 {[%emt 0:04:51]} Rf6 {[%emt 0:05:10]} 22. Red1 {[%emt 0:04:57]} (22. Qd1 {simplifies} Rd6 23. Rxd6 cxd6 24. Qa1) 22... Raf8 {[%emt 0:00:46]} 23. Rd8 {[%emt 0:05:38]} e3 {[%emt 0:07:57]} 24. Qe2 {[%emt 0:07:03]} f4 {[%emt 0:05:52][%cal Bf5f4,Bf4f3][%mdl 32]} 25. fxe3 {[%emt 0:01:00]} f3 {[%emt 0:06:24]} 26. Rxf8+ $40 {[%emt 0:00:49][%mdl 128] White is up to no good.} Rxf8 {[%emt 0:00:07]} 27. Qf2 {[%emt 0:00:24]} Qg5 {[%emt 0:02:46]} (27... Be4 $11) 28. Rd4 $14 {[%emt 0:05:29]} h6 {[%emt 0:05:47]} 29. Bd3 {[%emt 0:01:59]} Qe7 {[%emt 0:03:57]} 30. g3 {[%emt 0:02:28]} g5 {[%emt 0:04:31]} 31. g4 {[%emt 0:06:22]} (31. Kf1 $1 $16) 31... Qe5 {[%emt 0:04:06]} 32. Bf5 {[%emt 0:05:06]} h5 {[%emt 0:02:16]} 33. e4 {[%emt 0:01:25]} h4 {[%emt 0:01:12] [#]} (33... hxg4 $16 34. hxg4 Kg7) 34. Rd3 $2 {[%emt 0:00:45]} (34. Kf1 $1 $18) 34... Qa1+ $1 {[%emt 0:02:18]} ({Much worse is} 34... Bxe4 $6 35. Bxe4 Qxe4 36. Qd4+ Qxd4+ 37. Rxd4 $16) 35. Qf1 {[%emt 0:02:31]} f2+ $1 {[%emt 0:00:35]} 36. Kxf2 {[%emt 0:09:00][%cal Bg1f2,Bf2f1,Bf1e2][%mdl 32]} Qxf1+ {[%emt 0:00:51]} 37. Kxf1 {[%emt 0:00:03]} Bxe4 {[%emt 0:00:05]} 38. Rd2 {[%emt 0:00:07]} Bxf5 {[%emt 0:00:12][%mdl 4096] Endgame. KRB-KR} 39. Rf2 {[%emt 0:00:15]} Kg7 $2 {[%emt 0:01:10][%mdl 8192]} 40. Rxf5 $18 {[%emt 0:02:54]} Rxf5+ {[%emt 0:00:26]} (40... Rd8 $142 41. Rxg5+ (41. Rxa5 Kg6 $18) 41... Kf7 42. Rxa5 Rd1+ 43. Ke2 Rh1 44. Rf5+ Ke6) 41. gxf5 {[%emt 0:30:04]} c5 {[%emt 0:30:59]} 42. Ke2 {[%emt 0:02:05]} Kf6 {[%emt 0:00:07] [#]} 43. c3 $1 {[%emt 0:01:01]} Kg7 {[%emt 0:00:00]} 44. Kf3 {[%emt 0:00:00]} Kf7 {[%emt 0:00:00]} 45. Kg4 {[%emt 0:00:00] Weighted Error Value: White=0.14 (very precise) /Black=0.43.  Loses game:     	---       	Black=1      Missed win:     	White=1     	---        Mistake:       	White=1     	Black=3      Inaccurate:     	White=2     	Black=1      OK:         	White=18    	Black=11     Best:        	White=3     	Black=4      Strong:       	---       	Black=2} 1-0

[Event "45th FIDE Olympiad 2024"]
[Site "Budapest"]
[Date "2024.09.19"]
[Round "8.27"]
[White "Gontcharov, Dimitri"]
[Black "Ormsby, Alan"]
[Result "1/2-1/2"]
[WhiteElo "1653"]
[BlackElo "1914"]
[PlyCount "61"]
[EventDate "2024.09.05"]
[EventType "team-tourn"]
[EventCountry "HUN"]
[WhiteTeam "Bermuda"]
[BlackTeam "Isle of Man"]
[WhiteTeamCountry "BER"]
[BlackTeamCountry "IOM"]
[TimeControl "40/5400+30:1800+30"]

1. e4 g6 2. d4 Bg7 3. Nf3 d6 4. Bc4 e6 5. Nc3 a6 6. Bg5 Ne7 7. a4 b6 8. O-O h6 9. Be3 Nd7 10. Qd2 Bb7 11. Bb3 Nf6 12. d5 e5 13. h3 Qd7 14. Qd3 g5 15. Ne2 Nh5 16. a5 b5 17. c4 O-O 18. c5 dxc5 19. Bxc5 Nf4 20. Nxf4 gxf4 21. Qc3 Ng6 22. Bxf8 Rxf8 23. Rac1 Rc8 24. Rfd1 Bf6 25. Qc5 Qe7 26. Qxe7 Bxe7 27. Rc2 Bd6 28. Rdc1 Kf8 29. g3 Ke8 30. Kg2 Kd7 31. Ng1 1/2-1/2

[Event "45th FIDE Olympiad 2024"]
[Site "Budapest"]
[Date "2024.09.19"]
[Round "8.28"]
[White "Bok, Benjamin"]
[Black "Jobava, Baadur"]
[Result "1-0"]
[ECO "D17"]
[WhiteElo "2596"]
[BlackElo "2582"]
[Annotator "TA"]
[PlyCount "101"]
[EventDate "2024.09.05"]
[EventType "team-tourn"]
[EventCountry "HUN"]
[SourceTitle "playchess.com"]
[Source "ChessBase"]
[SourceQuality "1"]
[WhiteTeam "Netherlands"]
[BlackTeam "Georgia"]
[WhiteTeamCountry "NED"]
[BlackTeamCountry "GEO"]
[TimeControl "40/5400+30:1800+30"]

{[%evp 15,101,29,21,22,37,0,8,0,6,0,0,-41,55,29,38,36,125,109,125,72,60,27,80,76,110,104,129,122,143,146,183,172,191,192,218,193,187,193,424,397,402,387,459,449,455,433,437,446,422,416,409,395,481,444,447,448,439,423,468,314,308,303,410,404,422,388,414,405,390,383,375,306,2331,1546,5331,5206,5385,5497,29977,29972,29985,29986,29986,29987,29987,29988,29988,29989]} 1. d4 {[%emt 0:00:03]} d5 {[%emt 0:00:16]} 2. c4 {[%emt 0:00:06]} c6 {[%emt 0:00:07]} 3. Nf3 {[%emt 0:00:22]} Nf6 {[%emt 0:00:08]} 4. Nc3 {[%emt 0:00:25]} dxc4 {[%emt 0:00:16]} 5. a4 {[%emt 0:00:04]} Bf5 {[%emt 0:00:19]} 6. Ne5 {[%emt 0:00:05]} Nbd7 {[%emt 0:00:18]} 7. Nxc4 {[%emt 0:00:07]} Nb6 {[%emt 0:00:14]} 8. Ne5 {[%emt 0:00:17]} a5 {[%emt 0:00:06]} 9. h4 {[%emt 0:00:33]} g6 {[%emt 0:00:53]} 10. f3 {[%emt 0:14:16]} Be6 {[%emt 0:03:48]} 11. e4 {[%emt 0:00:53][%cal Od4d5] The position is equal.} Bg7 {[%emt 0:00:29]} 12. Be3 {[%emt 0:00:13]} Nh5 {[%emt 0:00:48]} 13. Bd3 {[%emt 0:25:26]} f6 {[%emt 0:19:50] [#]} (13... Ng3 $15 14. Rg1 f5) 14. d5 $1 $14 {[%emt 0:10:59]} fxe5 {[%emt 0:11:38]} 15. dxe6 {[%emt 0:00:37]} Nc8 {[%emt 0:17:14]} (15... Nf4 $14 16. Bf1 Qxd1+ 17. Rxd1 Nc8) 16. Kf2 $16 {[%emt 0:06:34][%cal Be1f2,Bf2g1,Bg1h2,Bh2g2][%mdl 32] Black is weak on the light squares} O-O {[%emt 0:14:16]} 17. Bc4 {[%emt 0:11:06]} (17. g3 $142) 17... Nd6 {[%emt 0:00:41]} 18. Bb3 {[%emt 0:00:36] Active counter play!} Nf6 {[%emt 0:01:38]} (18... b5 $1 $11 {keeps the balance.}) 19. Kg1 {[%emt 0:01:46] Black is on the road to losing.} Nh5 {[%emt 0:00:16]} 20. Kh2 {[%emt 0:02:59]} Kh8 {[%emt 0:00:26]} 21. g3 {[%emt 0:01:13]} Rf6 {[%emt 0:07:32]} 22. Kg2 {[%emt 0:03:09]} Qf8 {[%emt 0:08:19]} 23. Qe2 {[%emt 0:02:53]} Ra6 {[%emt 0:09:17][%cal Ba8a6,Ba6b6,Bb6b4][%mdl 32]} 24. Rad1 {[%emt 0:02:40]} Bh6 {[%emt 0:00:38] [#]} 25. Bg5 {[%emt 0:05:17]} Rb6 {[%emt 0:00:09]} 26. Ba2 {[%emt 0:00:15]} Qg7 $2 {[%emt 0:01:35]} (26... Bg7 27. Rd3 Rb4) 27. Rxd6 $18 {[%emt 0:04:48]} (27. Bxf6 Qxf6 28. Qf2 Rb4 $16) 27... exd6 {[%emt 0:00:04]} 28. e7 {[%emt 0:00:17]} Qxe7 {[%emt 0:00:03] aiming for ...Bxg5.} 29. Bxh6 {[%emt 0:00:03]} Qd7 {[%emt 0:00:15]} 30. Rd1 {[%emt 0:01:28]} Rb4 {[%emt 0:00:10]} 31. Bc4 {[%emt 0:01:24]} Ng7 {[%emt 0:01:23]} 32. b3 {[%emt 0:01:05][%cal Bb2b3,Bb3b4][%mdl 32]} Ne6 {[%emt 0:00:56]} 33. Be3 {[%emt 0:00:16] Against Nd4} h5 {[%emt 0:02:22]} 34. Na2 {[%emt 0:01:39]} Rxc4 {[%emt 0:00:13]} 35. Qxc4 {[%emt 0:00:46]} (35. bxc4 c5 36. Nc3 Nd4 37. Bxd4 cxd4) 35... Kh7 {[%emt 0:00:04]} 36. Nc3 {[%emt 0:01:08]} Qe7 {[%emt 0:00:33]} 37. b4 {[%emt 0:01:06]} Rxf3 {[%emt 0:00:20]} 38. Qe2 {[%emt 0:01:15]} (38. Kxf3 $2 {too greedy.} Qf7+ 39. Kg2 Nf4+ 40. gxf4 Qxc4 41. bxa5 Qxc3 $19) 38... Rf8 {[%emt 0:01:13]} 39. bxa5 {[%emt 0:00:22]} Nf4+ {[%emt 0:00:33]} 40. Bxf4 {[%emt 0:01:18]} (40. gxf4 exf4 41. Rf1 fxe3 42. Rxf8 (42. Qxe3 Rxf1 43. Kxf1 Qxh4 $16) 42... Qxf8 43. Qxe3 Qe7 $18) 40... exf4 {[%emt 0:00:08]} 41. Rf1 {[%emt 0:02:34]} fxg3 {[%emt 0:04:13]} 42. Rxf8 {[%emt 0:05:11]} Qxf8 {[%emt 0:00:09]} 43. Qf3 {[%emt 0:02:41] Prevents Qf4.} ({Less strong is} 43. Kxg3 Qg7 $16) 43... Qxf3+ {[%emt 0:02:55]} (43... Qe7 44. Qxg3 (44. Kxg3 Qe5+ 45. Kg2 Kg7 $18) 44... Qe6) 44. Kxf3 {[%emt 0:00:07][%cal Oc3b5][%mdl 4096] Endgame. Hoping for Nb5! KN-KP} g5 {[%emt 0:00:03]} 45. hxg5 {[%emt 0:09:30]} h4 {[%emt 0:04:00]} 46. Ne2 {[%emt 0:03:27]} d5 {[%emt 0:01:48][%cal Bd6d5,Bd5d4][%mdl 32]} 47. e5 {[%emt 0:04:24][%cal Be4e5,Be5e6,Be6e7][%mdl 32] White mates.} c5 {[%emt 0:02:23]} 48. e6 {[%emt 0:00:10]} Kg7 {[%emt 0:00:24]} 49. Nf4 {[%emt 0:00:41]} d4 {[%emt 0:00:18]} 50. e7 {[%emt 0:00:17]} Kf7 {[%emt 0:00:10]} 51. Nd5 {[%emt 0:00:06] Weighted Error Value: White=0.12 (very precise) /Black=0.44.  Mistake:       	White=1     	Black=5      Inaccurate:     	White=5     	Black=3      OK:         	White=21    	Black=12     Best:        	---       	Black=1      Brilliant:      	White=1     	---} 1-0

[Event "45th FIDE Olympiad 2024"]
[Site "Budapest"]
[Date "2024.09.19"]
[Round "8.28"]
[White "Miah, Zahed"]
[Black "Dennis, Nathan"]
[Result "1-0"]
[WhiteElo "1895"]
[BlackElo "1828"]
[PlyCount "83"]
[EventDate "2024.09.05"]
[EventType "team-tourn"]
[EventCountry "HUN"]
[WhiteTeam "Isle of Man"]
[BlackTeam "Bermuda"]
[WhiteTeamCountry "IOM"]
[BlackTeamCountry "BER"]
[TimeControl "40/5400+30:1800+30"]

1. e4 Nf6 2. e5 Nd5 3. d4 d6 4. c4 Nb6 5. exd6 cxd6 6. Nc3 g6 7. Be3 Bg7 8. Rc1 O-O 9. Be2 Nc6 10. Nf3 d5 11. b3 dxc4 12. bxc4 Bg4 13. d5 Bxf3 14. gxf3 Ne5 15. Qb3 Qc7 16. c5 Nc8 17. Ne4 Nd7 18. O-O a6 19. Rfd1 Be5 20. h3 Na7 21. d6 exd6 22. cxd6 Qb8 23. f4 Bg7 24. Rc7 Qe8 25. Bf3 Nc6 26. Qxb7 Na5 27. Qd5 Nf6 28. Nxf6+ Bxf6 29. Qxa5 Rb8 30. Qd5 Bd8 31. Rb7 Rxb7 32. Qxb7 Qe6 33. Qxa6 Qxh3 34. Qc6 Qe6 35. a4 h5 36. d7 Qxc6 37. Bxc6 Kg7 38. Bd4+ f6 39. Re1 Rh8 40. Re8 Kh7 41. Rxd8 Rxd8 42. Bxf6 1-0

[Event "45th FIDE Olympiad 2024"]
[Site "Budapest"]
[Date "2024.09.19"]
[Round "8.29"]
[White "Keymer, Vincent"]
[Black "Brkic, Ante"]
[Result "1-0"]
[ECO "A22"]
[WhiteElo "2730"]
[BlackElo "2642"]
[Annotator "TA"]
[PlyCount "107"]
[EventDate "2024.09.05"]
[EventType "team-tourn"]
[EventCountry "HUN"]
[SourceTitle "playchess.com"]
[Source "ChessBase"]
[SourceQuality "1"]
[WhiteTeam "Germany"]
[BlackTeam "Croatia"]
[WhiteTeamCountry "GER"]
[BlackTeamCountry "CRO"]
[TimeControl "40/5400+30:1800+30"]

{[%evp 28,107,0,-2,10,11,14,17,40,13,22,14,19,20,45,15,20,18,11,0,86,81,170,166,232,237,230,139,127,151,275,291,264,275,269,268,261,282,438,438,438,439,379,162,162,162,185,178,172,120,120,120,121,121,121,121,121,121,121,121,121,121,173,173,158,158,158,158,621,604,637,636,1011,603,1011,1011,1011,1005,947,941,946,902]} 1. c4 {[%emt 0:00:02]} e5 {[%emt 0:00:09]} 2. g3 {[%emt 0:00:04]} Nf6 {[%emt 0:05:22]} 3. Bg2 {[%emt 0:00:06]} d5 {[%emt 0:00:18]} 4. cxd5 {[%emt 0:00:06]} Nxd5 {[%emt 0:00:04]} 5. Nc3 {[%emt 0:00:05]} Nxc3 {[%emt 0:01:49]} 6. bxc3 {[%emt 0:00:06]} Bd6 {[%emt 0:00:04]} 7. Rb1 {[%emt 0:06:57] A22: English Opening: 1...e5 2 Nc3 Nf6.} Nc6 {[%emt 0:01:44]} 8. Nf3 {[%emt 0:05:41]} O-O {[%emt 0:01:57]} 9. Qc2 $146 {[%emt 0:07:43]} ({Predecessor:} 9. O-O e4 10. Ne1 Re8 11. f3 e3 12. d4 Qg5 13. f4 Qh5 14. c4 Qg6 15. Rb3 Na5 16. Rc3 Bg4 17. c5 {1-0 Pech,J-Koenig,M DESC SE242 email 2014}) 9... Rb8 {[%emt 0:22:03]} 10. h4 {[%emt 0:07:39]} Qe8 {[%emt 0:17:45]} 11. Ng5 {[%emt 0:05:55]} f5 {[%emt 0:03:04]} 12. Qb3+ {[%emt 0:31:05]} Kh8 {[%emt 0:00:04]} 13. Bd5 {[%emt 0:00:03]} Nd8 {[%emt 0:02:07]} 14. d4 {[%emt 0:03:54]} exd4 {[%emt 0:12:38]} 15. cxd4 {[%emt 0:00:39]} c6 {[%emt 0:00:25]} 16. Bg2 {[%emt 0:01:33]} Ne6 {[%emt 0:00:12]} 17. d5 {[%emt 0:04:32]} cxd5 {[%emt 0:20:30]} 18. Bxd5 {[%emt 0:00:36]} Nc5 $1 {[%emt 0:04:45]} 19. Qc4 {[%emt 0:04:31]} (19. Qe3 {simplifies} Bd7 20. Qxe8 Bxe8 21. Be3) 19... b5 {[%emt 0:00:30]} 20. Qd4 {[%emt 0:00:04]} Rb6 {[%emt 0:02:49]} 21. Bb2 {[%emt 0:02:33]} Qe7 {[%emt 0:00:02]} 22. h5 {[%emt 0:04:56]} (22. Qxg7+ Qxg7 23. Bxg7+ Kxg7 $19) 22... h6 $1 {[%emt 0:00:47]} ({Much weaker is} 22... Qxg5 $6 23. h6 Rg8 24. hxg7+ Rxg7 25. Rc1 $18) 23. Nf3 {[%emt 0:00:03]} Re8 {[%emt 0:01:02]} (23... Rd8 $11 {remains equal.} 24. Nh4 Be5 25. Qxe5 Qxe5 26. Bxe5 Rxd5) 24. O-O $16 {[%emt 0:00:39]} Nd7 {[%emt 0:01:03]} (24... Na4 $16) 25. Nh4 $18 {[%emt 0:01:24]} Nf8 {[%emt 0:00:05]} (25... Bc5 $142 26. Qf4 Qg5) 26. Rbc1 $18 {[%emt 0:02:12]} Bd7 {[%emt 0:00:49]} 27. Ng6+ Nxg6 {[%emt 0:00:01]} 28. hxg6 {[%emt 0:03:42]} Be5 {[%emt 0:01:40]} (28... Rf8 $16 {was necessary.} 29. e4 fxe4 30. Bxe4 Ra6) 29. Qxe5 $18 {[%emt 0:00:04]} Qxe5 {[%emt 0:00:01]} 30. Bxe5 {[%emt 0:00:06]} Rxe5 {[%emt 0:00:03]} 31. Bf7 {[%emt 0:00:05]} Rb8 {[%emt 0:00:16]} 32. Rc7 {[%emt 0:00:12]} Be8 {[%emt 0:01:07] [#]} (32... Be6 {is a better defense.} 33. Re7 (33. Rxa7 Bxf7 34. gxf7 g5 $16) 33... Bxf7 34. Rxe5 Bxg6) 33. Rfc1 $1 $18 {[%emt 0:00:12]} (33. Rxa7 Rxe2 34. Rb1 Bc6 $18) 33... Bxf7 {[%emt 0:00:13]} 34. gxf7 {[%emt 0:00:22]} (34. Rxf7 Re6 35. Rcc7 (35. Rxf5 Rxg6 36. Rb1 a6 $11) 35... Rxg6 $14) 34... Rd5 {[%emt 0:00:01]} 35. Rxa7 {[%emt 0:02:17]} (35. f3 $142 {[%cal Oe2e4] Threatens to win with e4!} g5 36. e4 (36. Rxa7 Rf8 $16) 36... fxe4 37. fxe4) 35... Kh7 $18 {[%emt 0:01:28]} 36. Rc6 {[%emt 0:01:17]} Re5 {[%emt 0:00:41]} 37. e3 {[%emt 0:00:28]} Rf8 {[%emt 0:00:22]} 38. Rcc7 {[%emt 0:04:21]} ({White should try} 38. Kg2 $18) 38... g5 $16 {[%emt 0:00:40]} 39. Ra5 {[%emt 0:02:18]} f4 {[%emt 0:00:35]} 40. exf4 {[%emt 0:00:07]} gxf4 {[%emt 0:00:02]} 41. gxf4 {[%emt 0:07:27]} Re4 {[%emt 0:25:33]} 42. Rxb5 {[%emt 0:12:09]} Ra4 {[%emt 0:00:44]} 43. f5 {[%emt 0:00:31]} Kg7 {[%emt 0:00:14]} 44. Rb6 {[%emt 0:00:50]} Rxa2 {[%emt 0:05:09]} (44... Rxf7 $16 45. Rg6+ Kf8) 45. Rg6+ $18 {[%emt 0:00:05]} Kh7 {[%emt 0:00:01]} 46. Rcc6 {[%emt 0:01:56]} Rxf7 {[%emt 0:00:50]} 47. Rxh6+ {[%emt 0:00:01]} Kg8 $2 {[%emt 0:00:48]} (47... Kg7 $16) 48. f6 $18 {[%emt 0:00:37]} Ra5 {[%emt 0:01:21]} 49. Kg2 {[%emt 0:01:46]} Ra8 {[%emt 0:00:28]} 50. Rc5 {[%emt 0:02:42]} Rff8 {[%emt 0:00:13]} 51. Kg3 {[%emt 0:01:04]} Kf7 {[%emt 0:00:49]} 52. Rc7+ {[%emt 0:00:10]} Ke6 {[%emt 0:00:01]} 53. f7+ {[%emt 0:00:09]} Kd5 {[%emt 0:00:15]} 54. Kf4 {[%emt 0:00:25]} 1-0

[Event "45th FIDE Olympiad 2024"]
[Site "Budapest"]
[Date "2024.09.19"]
[Round "8.29"]
[White "Than, Min Hlaing"]
[Black "Blackman, Justin"]
[Result "0-1"]
[WhiteElo "2121"]
[BlackElo "2265"]
[PlyCount "80"]
[EventDate "2024.09.05"]
[EventType "team-tourn"]
[EventCountry "HUN"]
[WhiteTeam "Myanmar"]
[BlackTeam "Barbados"]
[WhiteTeamCountry "MYA"]
[BlackTeamCountry "BAR"]
[TimeControl "40/5400+30:1800+30"]

1. Nf3 Nc6 2. d4 e6 3. c4 Nf6 4. Bg5 h6 5. Bxf6 Qxf6 6. e3 d6 7. Nc3 a6 8. Bd3 g6 9. O-O Bg7 10. h3 O-O 11. a3 Bd7 12. Rc1 Rae8 13. b4 Qd8 14. b5 Nb8 15. a4 e5 16. c5 exd4 17. exd4 dxc5 18. dxc5 Be6 19. Qc2 Nd7 20. Rfd1 Nxc5 21. Bxg6 Qc8 22. Bh7+ Kh8 23. Nd5 b6 24. bxa6 Rd8 25. Be4 Nxe4 26. Qxe4 Qa8 27. Rxc7 Bxd5 28. Qf4 Qxa6 29. Ne5 Qe2 30. Rxd5 Rxd5 31. Nxf7+ Kg8 32. Nxh6+ Bxh6 33. Qxh6 Qe1+ 34. Kh2 Qe5+ 35. f4 Qxc7 36. Qg6+ Qg7 37. Qe6+ Qf7 38. Qg4+ Kh8 39. g3 Qh5 40. Qxh5+ Rxh5 {0-} 0-1